[Event "Championnat d'Europe de Blitz"]
[Date "2024.12.09"]
[White "Santos Latasa, Jaime"]
[Black "Subelj, Jan"]
[WhiteElo "2628"]
[BlackElo "2526"]
[Round "5.11"]
[Result "1-0"]
[TimeControl "180+2"]

1. Nf3 {[%emt 00:17:31] [%clk 00:03:03]} d5 {[%emt 00:00:01] [%clk 00:03:03]} 2.
e3 {[%clk 00:03:04]} Nf6 {[%emt 00:00:02] [%clk 00:03:04]} 3. c4 {[%clk
00:03:05]} e6 {[%clk 00:03:05]} 4. Nc3 {[%clk 00:03:06]} Bd6 {[%emt 00:00:08]
[%clk 00:02:59]} 5. b3 {[%emt 00:00:03] [%clk 00:03:05]} O-O {[%emt 00:00:03]
[%clk 00:02:58]} 6. Bb2 {[%emt 00:00:01] [%clk 00:03:06]} b6 {[%emt 00:00:04]
[%clk 00:02:57]} 7. cxd5 {[%emt 00:00:16] [%clk 00:02:52]} exd5 {[%emt 00:00:01]
[%clk 00:02:58]} 8. Nb5 {[%emt 00:00:05] [%clk 00:02:48]} Be7 {[%emt 00:00:01]
[%clk 00:02:59]} 9. Be5 {[%emt 00:00:03] [%clk 00:02:47]} Ne8 {[%emt 00:00:07]
[%clk 00:02:54]} 10. Rc1 {[%emt 00:00:10] [%clk 00:02:40]} c5 {[%emt 00:00:15]
[%clk 00:02:40]} 11. Bxb8 {[%emt 00:00:22] [%clk 00:02:20]} Rxb8 {[%emt
00:00:02] [%clk 00:02:41]} 12. Nxa7 {[%emt 00:00:01] [%clk 00:02:20]} Bd7 {[%emt
00:00:08] [%clk 00:02:36]} 13. Nb5 {[%emt 00:00:05] [%clk 00:02:17]} Nd6 {[%emt
00:00:07] [%clk 00:02:31]} 14. Nxd6 {[%emt 00:00:02] [%clk 00:02:16]} Bxd6
{[%emt 00:00:02] [%clk 00:02:32]} 15. Be2 {[%emt 00:00:01] [%clk 00:02:16]} b5
{[%emt 00:00:08] [%clk 00:02:26]} 16. O-O {[%emt 00:00:05] [%clk 00:02:13]} Qa5
{[%emt 00:00:01] [%clk 00:02:27]} 17. Rc2 {[%emt 00:00:10] [%clk 00:02:05]} c4
{[%emt 00:00:36]} 18. Nd4 {[%clk 00:01:44]} Be5 {[%emt 00:00:01] [%clk
00:02:18]} 19. Bg4 {[%emt 00:00:05] [%clk 00:01:41]} f5 {[%emt 00:00:05] [%clk
00:02:15]} 20. Bf3 {[%clk 00:01:42]} b4 {[%emt 00:00:13] [%clk 00:02:05]} 21.
bxc4 {[%emt 00:00:09] [%clk 00:01:34]} Bxd4 {[%emt 00:00:01] [%clk 00:02:06]}
22. Bxd5+ {[%emt 00:00:05] [%clk 00:01:31]} Kh8 {[%clk 00:02:07]} 23. exd4
{[%emt 00:00:02] [%clk 00:01:31]} Ba4 {[%emt 00:00:01] [%clk 00:02:09]} 24. Qc1
{[%emt 00:00:06] [%clk 00:01:26]} Bxc2 {[%emt 00:00:08] [%clk 00:02:03]} 25.
Qxc2 {[%emt 00:00:01] [%clk 00:01:27]} Rbd8 {[%emt 00:00:03] [%clk 00:02:02]}
26. h3 {[%emt 00:00:04] [%clk 00:01:25]} f4 {[%emt 00:00:07] [%clk 00:01:57]}
27. Re1 {[%emt 00:00:03] [%clk 00:01:24]} Qa7 {[%emt 00:00:11] [%clk 00:01:48]}
28. Re4 {[%emt 00:00:13] [%clk 00:01:14]} Rde8 {[%emt 00:00:13] [%clk 00:01:36]}
29. c5 {[%emt 00:00:02] [%clk 00:01:15]} Qd7 {[%emt 00:00:12] [%clk 00:01:25]}
30. Bb3 {[%emt 00:00:12] [%clk 00:01:06]} f3 {[%emt 00:00:18] [%clk 00:01:09]}
31. Ba4 {[%emt 00:00:10] [%clk 00:00:58]} Rxe4 {[%emt 00:00:39] [%clk 00:00:31]}
32. Bxd7 {[%emt 00:00:05] [%clk 00:00:55]} Re1+ {[%emt 00:00:02] [%clk
00:00:32]} 33. Kh2 {[%emt 00:00:01] [%clk 00:00:55]} Re2 {[%emt 00:00:01] [%clk
00:00:33]} 34. Bg4 {[%emt 00:00:13] [%clk 00:00:44]} Rxf2 {[%emt 00:00:01] [%clk
00:00:34]} 35. Bxf3 {[%clk 00:00:45]} R8xf3 {[%clk 00:00:35]} 36. c6 {[%emt
00:00:01] [%clk 00:00:46]} Rf8 {[%emt 00:00:02] [%clk 00:00:35]} 37. c7 {[%emt
00:00:02] [%clk 00:00:46]} Rc8 {[%emt 00:00:02] [%clk 00:00:36]} 38. d5 {[%clk
00:00:47]} Rf6 {[%emt 00:00:06] [%clk 00:00:32]} 39. Qc5 {[%emt 00:00:03] [%clk
00:00:46]} Kg8 {[%emt 00:00:08] [%clk 00:00:26]} 40. d6 {[%emt 00:00:02] [%clk
00:00:46]} Rf7 {[%emt 00:00:01] [%clk 00:00:27]} 41. Qd5 {[%emt 00:00:02] [%clk
00:00:47]} Kf8 {[%emt 00:00:06] [%clk 00:00:23]} 42. d7 {[%emt 00:00:03] [%clk
00:00:45]} 1-0

[Site "Europe Echecs"]

[Event "Championnat d'Europe de Blitz"]
[Date "2024.12.09"]
[White "Bulmaga, Irina"]
[Black "Pultinevicius, Paulius"]
[WhiteElo "2386"]
[BlackElo "2579"]
[Round "5.12"]
[Result "0-1"]
[TimeControl "180+2"]

1. e4 {[%emt 00:08:16] [%clk 00:03:02]} c5 {[%clk 00:03:04]} 2. c3 {[%emt
00:00:01] [%clk 00:03:02]} Nf6 {[%emt 00:00:02] [%clk 00:03:04]} 3. e5 {[%clk
00:03:03]} Nd5 {[%clk 00:03:05]} 4. Nf3 {[%emt 00:00:02] [%clk 00:03:03]} d6
{[%emt 00:00:01] [%clk 00:03:06]} 5. Bb5+ {[%emt 00:00:05] [%clk 00:03:01]} Nc6
{[%emt 00:00:05] [%clk 00:03:02]} 6. exd6 {[%emt 00:00:15] [%clk 00:02:48]} Qxd6
{[%emt 00:00:05] [%clk 00:03:00]} 7. O-O {[%emt 00:00:02] [%clk 00:02:47]} e6
{[%emt 00:00:07] [%clk 00:02:55]} 8. a4 {[%emt 00:00:08] [%clk 00:02:41]} Be7
{[%emt 00:00:04] [%clk 00:02:54]} 9. Na3 {[%emt 00:00:04] [%clk 00:02:39]} O-O
{[%emt 00:00:02] [%clk 00:02:54]} 10. d4 {[%emt 00:00:03] [%clk 00:02:38]} cxd4
{[%emt 00:00:04] [%clk 00:02:51]} 11. Nxd4 {[%emt 00:00:04] [%clk 00:02:36]} Bd7
{[%emt 00:00:06] [%clk 00:02:47]} 12. Nxc6 {[%emt 00:00:07] [%clk 00:02:31]}
Bxc6 {[%emt 00:00:03] [%clk 00:02:46]} 13. Nc4 {[%emt 00:00:05]} Qc7 {[%clk
00:02:47]} 14. Bxc6 {[%emt 00:00:17] [%clk 00:02:15]} Qxc6 {[%emt 00:00:01]
[%clk 00:02:48]} 15. Qe2 {[%emt 00:00:10] [%clk 00:02:08]} Bf6 {[%clk 00:02:49]}
16. Ne5 {[%emt 00:00:12] [%clk 00:01:58]} Bxe5 {[%emt 00:00:02] [%clk 00:02:50]}
17. Qxe5 {[%emt 00:00:01] [%clk 00:01:59]} Qc4 {[%emt 00:00:01] [%clk 00:02:51]}
18. Be3 {[%emt 00:00:09] [%clk 00:01:52]} Rfe8 {[%emt 00:00:03] [%clk 00:02:50]}
19. h3 {[%emt 00:00:08] [%clk 00:01:45]} a6 {[%emt 00:00:02] [%clk 00:02:50]}
20. Qd4 {[%emt 00:00:05] [%clk 00:01:42]} Qc6 {[%emt 00:00:01] [%clk 00:02:51]}
21. Rfd1 {[%emt 00:00:03] [%clk 00:01:41]} Rac8 {[%emt 00:00:02] [%clk
00:02:51]} 22. a5 {[%emt 00:00:05] [%clk 00:01:38]} Qb5 {[%emt 00:00:07] [%clk
00:02:46]} 23. Rd2 {[%emt 00:00:07] [%clk 00:01:33]} Rc4 {[%emt 00:00:02] [%clk
00:02:46]} 24. Qd3 {[%emt 00:00:13] [%clk 00:01:23]} Qc6 {[%emt 00:00:09] [%clk
00:02:39]} 25. Rad1 {[%emt 00:00:21] [%clk 00:01:04]} f5 {[%emt 00:00:08] [%clk
00:02:32]} 26. f3 {[%emt 00:00:09] [%clk 00:00:57]} Ra4 {[%emt 00:00:05] [%clk
00:02:29]} 27. Bb6 {[%emt 00:00:01] [%clk 00:00:58]} h6 {[%emt 00:00:17] [%clk
00:02:15]} 28. Kh1 {[%emt 00:00:03] [%clk 00:00:56]} Rh4 {[%emt 00:00:02] [%clk
00:02:15]} 29. Bf2 {[%emt 00:00:05] [%clk 00:00:53]} Rc4 {[%emt 00:00:03] [%clk
00:02:15]} 30. Bg3 {[%emt 00:00:07] [%clk 00:00:47]} Qb5 {[%emt 00:00:12] [%clk
00:02:05]} 31. Re1 {[%emt 00:00:07] [%clk 00:00:42]} Kf7 {[%emt 00:00:15] [%clk
00:01:53]} 32. Re5 {[%emt 00:00:09] [%clk 00:00:35]} Rc6 {[%emt 00:00:01] [%clk
00:01:54]} 33. Qxb5 {[%emt 00:00:24] [%clk 00:00:12]} axb5 {[%emt 00:00:01]
[%clk 00:01:55]} 34. Rdxd5 {[%emt 00:00:01] [%clk 00:00:13]} exd5 {[%emt
00:00:02] [%clk 00:01:56]} 35. Rxf5+ {[%clk 00:00:14]} Kg6 {[%emt 00:00:23]
[%clk 00:01:36]} 36. Rxd5 {[%emt 00:00:02] [%clk 00:00:14]} b4 {[%emt 00:00:01]
[%clk 00:01:36]} 37. Be5 {[%emt 00:00:12] [%clk 00:00:04]} bxc3 {[%emt 00:00:18]
[%clk 00:01:20]} 38. Bxc3 {[%emt 00:00:01] [%clk 00:00:05]} Re7 {[%clk
00:01:21]} 39. h4 {[%emt 00:00:01] [%clk 00:00:06]} Kf7 {[%emt 00:00:06] [%clk
00:01:17]} 40. h5 {[%emt 00:00:02] [%clk 00:00:06]} Rec7 {[%emt 00:00:07] [%clk
00:01:12]} 41. Kg1 {[%emt 00:00:02] [%clk 00:00:06]} Rc5 {[%emt 00:00:02] [%clk
00:01:13]} 42. Rxc5 {[%emt 00:00:03] [%clk 00:00:05]} Rxc5 {[%clk 00:01:14]} 43.
g4 {[%clk 00:00:06]} Rc7 {[%emt 00:00:04] [%clk 00:01:13]} 44. Kf2 {[%clk
00:00:06]} Ke6 {[%emt 00:00:01] [%clk 00:01:14]} 45. f4 {[%clk 00:00:08]} Kd5
{[%emt 00:00:25] [%clk 00:00:52]} 46. Kf3 {[%emt 00:00:01] [%clk 00:00:09]} Kc4
{[%emt 00:00:06] [%clk 00:00:47]} 47. g5 {[%clk 00:00:10]} Kd5 {[%emt 00:00:05]
[%clk 00:00:45]} 48. g6 {[%emt 00:00:08] [%clk 00:00:04]} Rd7 {[%emt 00:00:35]
[%clk 00:00:12]} 49. f5 {[%emt 00:00:03] [%clk 00:00:00]} Re7 50. Kf4 Re4+ 51.
Kf3 {[%emt 00:00:01]} Rh4 {[%emt 00:00:01]} 52. Bxg7 Rxh5 53. f6 {[%clk
00:00:00]} Rf5+ {[%emt 00:00:04]} 54. Kg4 {[%emt 00:00:02]} Rg5+ 0-1

[Site "Europe Echecs"]

[Event "Championnat d'Europe de Blitz"]
[Date "2024.12.09"]
[White "Van Foreest, Lucas"]
[Black "Zlatkov, Anton"]
[WhiteElo "2520"]
[BlackElo "2324"]
[Round "5.13"]
[Result "0-1"]
[TimeControl "180+2"]

1. e4 {[%clk 00:03:03]} c5 {[%clk 00:03:03]} 2. Nf3 {[%clk 00:03:04]} e6 {[%emt
00:00:02] [%clk 00:03:03]} 3. d4 {[%emt 00:00:04] [%clk 00:03:03]} cxd4 {[%emt
00:00:01] [%clk 00:03:04]} 4. Nxd4 {[%emt 00:00:01] [%clk 00:03:04]} Nf6 {[%emt
00:00:11] [%clk 00:02:55]} 5. Nc3 {[%emt 00:00:02] [%clk 00:03:04]} Nc6 {[%clk
00:02:57]} 6. a3 {[%emt 00:00:03] [%clk 00:03:03]} Be7 {[%emt 00:00:03] [%clk
00:02:55]} 7. Be3 {[%emt 00:00:06] [%clk 00:02:59]} d6 {[%emt 00:00:02] [%clk
00:02:55]} 8. Be2 {[%emt 00:00:03] [%clk 00:02:58]} O-O {[%emt 00:00:04] [%clk
00:02:54]} 9. O-O {[%emt 00:00:08] [%clk 00:02:51]} e5 {[%emt 00:00:05] [%clk
00:02:50]} 10. Nb3 {[%emt 00:00:09] [%clk 00:02:44]} Be6 {[%emt 00:00:02] [%clk
00:02:51]} 11. Nd5 {[%emt 00:00:04] [%clk 00:02:42]} Nxe4 {[%emt 00:00:08] [%clk
00:02:45]} 12. c4 {[%clk 00:02:43]} Nc5 {[%emt 00:00:33] [%clk 00:02:14]} 13.
Nd2 {[%emt 00:00:07] [%clk 00:02:37]} f5 {[%emt 00:00:13] [%clk 00:02:04]} 14.
f4 {[%emt 00:00:04] [%clk 00:02:35]} e4 {[%clk 00:02:06]} 15. b4 {[%clk
00:02:35]} Nd7 {[%emt 00:00:06] [%clk 00:02:01]} 16. Nb3 {[%emt 00:00:01] [%clk
00:02:36]} Bf6 {[%emt 00:00:17] [%clk 00:01:47]} 17. Ra2 {[%emt 00:00:21] [%clk
00:02:17]} Ne7 {[%emt 00:00:25] [%clk 00:01:23]} 18. Nxf6+ {[%emt 00:00:06]
[%clk 00:02:14]} Nxf6 {[%emt 00:00:02] [%clk 00:01:24]} 19. Rd2 {[%emt 00:00:01]
[%clk 00:02:15]} Qc7 {[%emt 00:00:30] [%clk 00:00:55]} 20. Nd4 {[%emt 00:00:23]
[%clk 00:01:54]} Bxc4 {[%emt 00:00:31] [%clk 00:00:26]} 21. Rc2 {[%emt 00:00:02]
[%clk 00:01:54]} Bxe2 {[%emt 00:00:02] [%clk 00:00:26]} 22. Rxc7 {[%clk
00:01:55]} Bxd1 {[%emt 00:00:01] [%clk 00:00:27]} 23. Rxe7 {[%emt 00:00:01]
[%clk 00:01:56]} Nd5 {[%clk 00:00:28]} 24. Rxb7 {[%emt 00:00:16] [%clk
00:01:42]} Nxe3 {[%emt 00:00:04] [%clk 00:00:27]} 25. Re1 {[%clk 00:01:43]} Nc2
{[%emt 00:00:12] [%clk 00:00:17]} 26. Rxd1 {[%clk 00:01:44]} Nxd4 {[%emt
00:00:01] [%clk 00:00:18]} 27. Rxd4 {[%clk 00:01:46]} Rfe8 {[%emt 00:00:02]
[%clk 00:00:18]} 28. Rxd6 {[%emt 00:00:02] [%clk 00:01:45]} e3 {[%emt 00:00:02]
[%clk 00:00:19]} 29. Kf1 {[%emt 00:00:02] [%clk 00:01:45]} e2+ {[%emt 00:00:03]
[%clk 00:00:18]} 30. Ke1 {[%emt 00:00:32] [%clk 00:01:14]} Rac8 {[%emt 00:00:02]
[%clk 00:00:19]} 31. Rd1 {[%emt 00:00:04] [%clk 00:01:12]} exd1=Q+ {[%emt
00:00:04] [%clk 00:00:17]} 32. Kxd1 {[%emt 00:00:01] [%clk 00:01:14]} Red8+
{[%emt 00:00:03] [%clk 00:00:16]} 33. Ke1 {[%clk 00:01:14]} Rc1+ {[%emt
00:00:01] [%clk 00:00:17]} 34. Ke2 {[%clk 00:01:16]} Rc2+ {[%emt 00:00:01] [%clk
00:00:18]} 35. Ke1 {[%clk 00:01:17]} Re8+ {[%emt 00:00:02] [%clk 00:00:18]} 36.
Kd1 {[%emt 00:00:01] [%clk 00:01:18]} Rxg2 {[%emt 00:00:01] [%clk 00:00:19]} 37.
Rxa7 {[%emt 00:00:07] [%clk 00:01:23]} 0-1

[Site "Europe Echecs"]

[Event "Championnat d'Europe de Blitz"]
[Date "2024.12.09"]
[White "Kozul, Zdenko"]
[Black "Arnaudov, G. Petar"]
[WhiteElo "2519"]
[BlackElo "2401"]
[Round "5.14"]
[Result "0-1"]
[TimeControl "180+2"]

1. d4 {[%clk 00:03:03]} Nf6 {[%clk 00:03:02]} 2. c4 {[%clk 00:03:04]} e6 {[%emt
00:00:01] [%clk 00:03:03]} 3. g3 {[%emt 00:00:03] [%clk 00:03:02]} d5 {[%emt
00:00:03] [%clk 00:03:03]} 4. Bg2 {[%emt 00:00:01] [%clk 00:03:03]} Be7 {[%emt
00:00:01] [%clk 00:03:04]} 5. Nf3 {[%emt 00:00:01] [%clk 00:03:04]} O-O {[%emt
00:00:01] [%clk 00:03:05]} 6. O-O {[%clk 00:03:05]} a5 {[%emt 00:00:02] [%clk
00:03:05]} 7. Qc2 {[%emt 00:00:32] [%clk 00:02:35]} Nbd7 {[%emt 00:00:02] [%clk
00:03:06]} 8. Nbd2 {[%emt 00:00:18] [%clk 00:02:19]} c5 {[%emt 00:00:01] [%clk
00:03:06]} 9. e4 {[%emt 00:00:39] [%clk 00:01:43]} cxd4 {[%emt 00:00:13] [%clk
00:02:54]} 10. exd5 {[%emt 00:00:03] [%clk 00:01:43]} exd5 {[%emt 00:00:11]
[%clk 00:02:44]} 11. Nxd4 {[%emt 00:00:02] [%clk 00:01:43]} Nc5 {[%emt 00:00:14]
[%clk 00:02:32]} 12. Nf5 {[%emt 00:00:19] [%clk 00:01:27]} d4 {[%emt 00:00:15]
[%clk 00:02:19]} 13. Nb3 {[%emt 00:00:18] [%clk 00:01:11]} d3 {[%emt 00:00:14]
[%clk 00:02:07]} 14. Nxe7+ {[%emt 00:00:02] [%clk 00:01:11]} Qxe7 {[%emt
00:00:01] [%clk 00:02:07]} 15. Qd2 {[%emt 00:00:09] [%clk 00:01:04]} Bf5 {[%emt
00:00:35] [%clk 00:01:35]} 16. Re1 {[%emt 00:00:02] [%clk 00:01:03]} Qd6 {[%emt
00:00:03] [%clk 00:01:34]} 17. Qf4 {[%emt 00:00:01] [%clk 00:01:04]} Qxf4 {[%emt
00:00:05] [%clk 00:01:31]} 18. Bxf4 {[%clk 00:01:05]} Nfe4 {[%emt 00:00:35]
[%clk 00:00:57]} 19. f3 {[%emt 00:00:09] [%clk 00:00:59]} Nxb3 {[%emt 00:00:07]
[%clk 00:00:53]} 20. axb3 {[%emt 00:00:01] [%clk 00:00:59]} Nc5 {[%emt 00:00:21]
[%clk 00:00:34]} 21. Ra3 {[%emt 00:00:30] [%clk 00:00:31]} Rfe8 {[%emt 00:00:05]
[%clk 00:00:32]} 22. Be3 {[%emt 00:00:13] [%clk 00:00:19]} Rad8 {[%emt 00:00:07]
[%clk 00:00:27]} 23. Kf2 {[%emt 00:00:10] [%clk 00:00:11]} d2 {[%emt 00:00:02]
[%clk 00:00:27]} 24. Rd1 {[%emt 00:00:01] [%clk 00:00:12]} Nd3+ {[%emt 00:00:18]
[%clk 00:00:11]} 25. Ke2 {[%clk 00:00:13]} Nc1+ {[%emt 00:00:02] [%clk
00:00:12]} 26. Kf2 {[%emt 00:00:01] [%clk 00:00:13]} Bc2 {[%emt 00:00:03] [%clk
00:00:11]} 27. Rxc1 {[%emt 00:00:05] [%clk 00:00:11]} Rxe3 {[%emt 00:00:08]
[%clk 00:00:05]} 28. Raa1 {[%emt 00:00:10] [%clk 00:00:03]} dxc1=Q 29. Rxc1
{[%clk 00:00:04]} Red3 {[%emt 00:00:03] [%clk 00:00:04]} 30. Rxc2 {[%emt
00:00:01] [%clk 00:00:05]} Rd2+ {[%clk 00:00:06]} 0-1

[Site "Europe Echecs"]

[Event "Championnat d'Europe de Blitz"]
[Date "2024.12.09"]
[White "Domingo Nunez, Ruben"]
[Black "Motylev, Alexander"]
[WhiteElo "2409"]
[BlackElo "2596"]
[Round "5.15"]
[Result "1-0"]
[TimeControl "180+2"]

1. e4 {[%clk 00:03:03]} c5 {[%clk 00:03:03]} 2. d4 {[%emt 00:00:02] [%clk
00:03:04]} cxd4 {[%emt 00:00:02] [%clk 00:03:02]} 3. c3 {[%emt 00:00:01] [%clk
00:03:05]} d3 {[%emt 00:00:02] [%clk 00:03:02]} 4. Bxd3 {[%clk 00:03:06]} g6
{[%emt 00:00:02] [%clk 00:03:03]} 5. c4 {[%emt 00:00:01] [%clk 00:03:07]} Bg7
{[%emt 00:00:01] [%clk 00:03:03]} 6. Nf3 {[%clk 00:03:08]} Nc6 {[%emt 00:00:02]
[%clk 00:03:03]} 7. O-O {[%emt 00:00:02] [%clk 00:03:08]} d6 {[%emt 00:00:01]
[%clk 00:03:04]} 8. h3 {[%emt 00:00:01] [%clk 00:03:09]} Nf6 {[%emt 00:00:01]
[%clk 00:03:04]} 9. Nc3 {[%emt 00:00:01] [%clk 00:03:10]} O-O {[%emt 00:00:02]
[%clk 00:03:04]} 10. Be3 {[%emt 00:00:02] [%clk 00:03:11]} Be6 {[%emt 00:00:02]
[%clk 00:03:04]} 11. Rc1 {[%emt 00:00:01] [%clk 00:03:12]} Nd7 {[%emt 00:00:38]
[%clk 00:02:28]} 12. b3 {[%emt 00:00:02] [%clk 00:03:13]} Nc5 {[%emt 00:00:08]
[%clk 00:02:22]} 13. Bb1 {[%emt 00:00:01] [%clk 00:03:14]} Rc8 {[%emt 00:00:14]
[%clk 00:02:09]} 14. Qe2 {[%emt 00:00:02] [%clk 00:03:14]} Re8 {[%emt 00:00:15]
[%clk 00:01:56]} 15. Rfd1 {[%emt 00:00:02] [%clk 00:03:15]} Qc7 {[%emt 00:00:14]
[%clk 00:01:43]} 16. Nd5 {[%emt 00:00:08] [%clk 00:03:10]} Qb8 {[%emt 00:00:01]
[%clk 00:01:44]} 17. Ng5 {[%emt 00:00:25] [%clk 00:02:46]} Bd7 {[%emt 00:00:23]
[%clk 00:01:23]} 18. Nf3 {[%emt 00:00:32] [%clk 00:02:16]} e6 {[%emt 00:00:26]
[%clk 00:00:59]} 19. Nc3 {[%emt 00:00:05] [%clk 00:02:14]} Red8 {[%emt 00:00:03]
[%clk 00:00:59]} 20. Nb5 {[%emt 00:00:09] [%clk 00:02:06]} Be8 {[%emt 00:00:10]
[%clk 00:00:51]} 21. Nxd6 {[%emt 00:00:33] [%clk 00:01:35]} Nxb3 {[%emt
00:00:02] [%clk 00:00:52]} 22. axb3 {[%emt 00:00:37] [%clk 00:01:00]} Rxd6
{[%clk 00:00:53]} 23. h4 {[%emt 00:00:09] [%clk 00:00:54]} h6 {[%emt 00:00:04]
[%clk 00:00:50]} 24. h5 {[%emt 00:00:02] [%clk 00:00:54]} g5 {[%emt 00:00:02]
[%clk 00:00:51]} 25. e5 {[%emt 00:00:04] [%clk 00:00:52]} Rxd1+ {[%emt 00:00:04]
[%clk 00:00:48]} 26. Rxd1 {[%emt 00:00:15] [%clk 00:00:39]} Nxe5 {[%emt
00:00:01] [%clk 00:00:49]} 27. Nxe5 {[%emt 00:00:03] [%clk 00:00:38]} Qxe5
{[%emt 00:00:08] [%clk 00:00:42]} 28. Qd3 {[%emt 00:00:04] [%clk 00:00:37]} b6
{[%emt 00:00:02] [%clk 00:00:42]} 29. Qh7+ {[%emt 00:00:04] [%clk 00:00:34]} Kf8
{[%emt 00:00:01] [%clk 00:00:43]} 30. Bd4 {[%emt 00:00:05] [%clk 00:00:32]} Rd8
{[%emt 00:00:07] [%clk 00:00:38]} 31. Qxg7+ {[%emt 00:00:07] [%clk 00:00:27]}
1-0

[Site "Europe Echecs"]

[Event "Championnat d'Europe de Blitz"]
[Date "2024.12.09"]
[White "Fedoseev, Vladimir"]
[Black "Kilic, Eray"]
[WhiteElo "2709"]
[BlackElo "2459"]
[Round "5.16"]
[Result "1-0"]
[TimeControl "180+2"]

1. d4 {[%clk 00:03:04]} Nf6 {[%emt 00:00:03] [%clk 00:03:03]} 2. c4 {[%clk
00:03:05]} e6 {[%clk 00:03:04]} 3. Nf3 {[%clk 00:03:06]} d5 {[%clk 00:03:05]} 4.
Nc3 {[%clk 00:03:07]} Bb4 {[%emt 00:00:01] [%clk 00:03:06]} 5. Bg5 {[%emt
00:00:03] [%clk 00:03:06]} h6 {[%emt 00:00:14] [%clk 00:02:53]} 6. Bxf6 {[%emt
00:00:02] [%clk 00:03:07]} Qxf6 {[%emt 00:00:01] [%clk 00:02:54]} 7. e3 {[%emt
00:00:01] [%clk 00:03:08]} dxc4 {[%emt 00:00:10] [%clk 00:02:46]} 8. Bxc4 {[%emt
00:00:05] [%clk 00:03:05]} O-O {[%emt 00:00:02] [%clk 00:02:45]} 9. O-O {[%emt
00:00:03] [%clk 00:03:05]} Rd8 {[%emt 00:00:11] [%clk 00:02:35]} 10. Ne4 {[%emt
00:00:04] [%clk 00:03:04]} Qe7 {[%emt 00:00:01] [%clk 00:02:36]} 11. a3 {[%emt
00:00:05] [%clk 00:03:02]} Bd6 {[%emt 00:00:01] [%clk 00:02:36]} 12. Qc2 {[%emt
00:00:08] [%clk 00:02:57]} Nd7 {[%emt 00:00:07] [%clk 00:02:30]} 13. b4 {[%emt
00:00:19] [%clk 00:02:40]} b6 {[%emt 00:00:20] [%clk 00:02:13]} 14. Bb5 {[%emt
00:00:08] [%clk 00:02:34]} Bb7 {[%emt 00:00:15] [%clk 00:01:59]} 15. Rfc1 {[%emt
00:00:10] [%clk 00:02:26]} Nf6 {[%emt 00:00:25] [%clk 00:01:36]} 16. Nxf6+
{[%emt 00:00:01] [%clk 00:02:27]} Qxf6 {[%emt 00:00:02] [%clk 00:01:37]} 17. e4
{[%clk 00:02:28]} Bf4 {[%emt 00:00:10] [%clk 00:01:28]} 18. Re1 {[%emt 00:00:15]
[%clk 00:02:16]} Rac8 {[%emt 00:00:26] [%clk 00:01:05]} 19. Bc6 {[%emt 00:00:02]
[%clk 00:02:16]} Bxc6 {[%emt 00:00:02] [%clk 00:01:05]} 20. Qxc6 {[%clk
00:02:17]} Qg6 {[%emt 00:00:04] [%clk 00:01:04]} 21. e5 {[%emt 00:00:10] [%clk
00:02:09]} h5 {[%emt 00:00:03] [%clk 00:01:02]} 22. Re4 {[%emt 00:00:20] [%clk
00:01:51]} Bh6 {[%emt 00:00:01] [%clk 00:01:03]} 23. Rae1 {[%emt 00:00:01] [%clk
00:01:52]} Rd5 {[%emt 00:00:03] [%clk 00:01:02]} 24. Qb7 {[%emt 00:00:03] [%clk
00:01:51]} Rdd8 {[%emt 00:00:14] [%clk 00:00:50]} 25. Qxa7 {[%emt 00:00:05]
[%clk 00:01:48]} Qf5 {[%emt 00:00:01] [%clk 00:00:51]} 26. Qb7 {[%emt 00:00:25]
[%clk 00:01:25]} g5 {[%emt 00:00:02] [%clk 00:00:52]} 27. Qc6 {[%emt 00:00:01]
[%clk 00:01:26]} g4 {[%emt 00:00:08] [%clk 00:00:45]} 28. Nh4 {[%clk 00:01:27]}
Qg5 {[%emt 00:00:01] [%clk 00:00:47]} 29. g3 {[%emt 00:00:02] [%clk 00:01:26]}
Qe7 {[%emt 00:00:02] [%clk 00:00:46]} 30. h3 {[%emt 00:00:09] [%clk 00:01:20]}
Bg5 {[%emt 00:00:05] [%clk 00:00:43]} 31. hxg4 {[%emt 00:00:22] [%clk 00:01:00]}
Bxh4 {[%emt 00:00:01] [%clk 00:00:44]} 32. gxh4 {[%emt 00:00:01] [%clk
00:01:01]} Qxh4 {[%emt 00:00:02] [%clk 00:00:44]} 33. R1e3 {[%emt 00:00:02]
[%clk 00:01:01]} Kh8 {[%emt 00:00:07] [%clk 00:00:38]} 34. Rg3 {[%emt 00:00:08]
[%clk 00:00:55]} Rd5 {[%emt 00:00:27] [%clk 00:00:14]} 35. Qc1 {[%emt 00:00:15]
[%clk 00:00:42]} Kh7 {[%emt 00:00:06] [%clk 00:00:10]} 36. Rf4 {[%emt 00:00:11]}
Rg8 {[%clk 00:00:04]} 37. g5 {[%emt 00:00:04] [%clk 00:00:39]} 1-0

[Site "Europe Echecs"]